bitfinex/quotes_BTCUSD_20250829
["timestamp","ask_amount","ask_price","bid_price","bid_amount"]
[1756429697890,0.6891498,112170.0,112160.0,0.33188424]
[1756429698290,0.6891498,112170.0,112160.0,0.34967105]
[1756429699208,0.6891498,112170.0,112160.0,0.33188424]
[1756429702178,0.34,112170.0,112160.0,0.33406424]
[1756429702399,0.71682714,112190.0,112180.0,0.17828489]
[1756429702519,0.59082769,112190.0,112180.0,0.33084489]
[1756429702721,0.59082769,112190.0,112180.0,0.15256]
[1756429702919,0.56709969,112190.0,112180.0,0.33307345]
[1756429703228,0.56709969,112190.0,112180.0,0.33084489]
[1756429703438,0.91116949,112190.0,112180.0,0.33084489]
[1756429703644,0.72461642,112190.0,112180.0,0.33084489]
[1756429703977,0.70552994,112190.0,112180.0,0.33084489]
[1756429704187,0.70552994,112190.0,112170.0,0.17828659]
[1756429704188,0.97351727,112190.0,112170.0,0.17828659]
[1756429704358,0.97351727,112190.0,112160.0,0.00104755]
[1756429704359,0.17830079,112170.0,112160.0,0.00104755]
[1756429704536,1.20644039,112170.0,112160.0,4.755e-05]
[1756429704732,1.23827776,112170.0,112160.0,4.755e-05]
[1756429704962,1.26508676,112170.0,112160.0,4.755e-05]
[1756429705156,1.37246633,112170.0,112160.0,4.755e-05]
[1756429705331,1.46076265,112170.0,112160.0,4.755e-05]
[1756429705539,1.4968777,112170.0,112160.0,4.755e-05]
[1756429705927,6.62432162,112170.0,112160.0,4.755e-05]
[1756429706135,6.30410028,112170.0,112160.0,4.755e-05]
[1756429706443,5.49982975,112170.0,112160.0,4.755e-05]
[1756429706649,6.15511184,112170.0,112160.0,4.755e-05]
[1756429706846,6.16131871,112170.0,112160.0,4.755e-05]
[1756429707259,6.13747025,112170.0,112160.0,4.755e-05]
[1756429707517,6.55692686,112170.0,112160.0,1e-08]
[1756429707750,6.71478874,112170.0,112160.0,1e-08]
[1756429707988,6.73068771,112170.0,112160.0,1e-08]
[1756429708226,6.71709181,112170.0,112160.0,1e-08]
[1756429708914,5.68488241,112170.0,112160.0,1e-08]
[1756429709198,6.71809181,112170.0,112160.0,1e-08]
[1756429709419,6.71709181,112170.0,112160.0,1e-08]
[1756429709622,6.70122318,112170.0,112160.0,1e-08]
[1756429709847,5.6424004,112170.0,112160.0,1e-08]
[1756429710054,6.75508094,112170.0,112160.0,1e-08]
[1756429710291,6.90316221,112170.0,112160.0,1e-08]
[1756429710693,6.90316214,112170.0,112160.0,1e-08]
[1756429710898,6.89716214,112170.0,112160.0,1e-08]
[1756429711198,6.73428214,112170.0,112160.0,1e-08]
[1756429711405,6.90628214,112170.0,112160.0,1e-08]
[1756429711612,6.90660214,112170.0,112160.0,1e-08]
[1756429711819,6.73928214,112170.0,112160.0,1e-08]
[1756429712023,6.92056034,112170.0,112160.0,1e-08]
[1756429712866,6.70324034,112170.0,112160.0,1e-08]
[1756429713026,6.82284814,112170.0,112160.0,1e-08]
[1756429713181,6.87031201,112170.0,112160.0,1e-08]
[1756429713617,6.87030401,112170.0,112160.0,1e-08]
[1756429714279,6.68644143,112170.0,112160.0,1e-08]
[1756429714412,6.85360143,112170.0,112160.0,1e-08]
[1756429714821,6.68644143,112170.0,112160.0,1e-08]
[1756429715028,6.85344143,112170.0,112160.0,1e-08]
[1756429715337,0.51833259,112150.0,112140.0,0.00115925]
[1756429715529,6.36082466,112150.0,112140.0,0.00115925]
[1756429715731,6.36601466,112150.0,112140.0,0.00115925]
[1756429716138,6.36912242,112150.0,112140.0,0.00115925]
[1756429716752,6.36920242,112150.0,112140.0,0.00115925]
[1756429717134,6.36919768,112150.0,112140.0,0.00115925]
[1756429718130,5.73704718,112150.0,112140.0,0.00115925]
[1756429718509,6.42518678,112150.0,112140.0,0.00115925]
[1756429718925,6.42618678,112150.0,112140.0,0.00115925]
[1756429719081,6.42582678,112150.0,112140.0,0.00115925]
[1756429719467,6.25902678,112150.0,112140.0,0.00115925]
[1756429719667,5.70145541,112150.0,112140.0,0.00115925]
[1756429719914,6.39275501,112150.0,112140.0,0.00115925]
[1756429720257,6.36111295,112150.0,112140.0,0.00115925]
[1756429720493,6.35492226,112150.0,112140.0,0.00115925]
[1756429720696,6.36109911,112150.0,112140.0,0.00115925]
[1756429720965,6.44939543,112150.0,112140.0,0.00115925]
[1756429721134,6.44939577,112150.0,112140.0,0.00115925]
[1756429721992,5.83342706,112150.0,112140.0,0.00324925]
[1756429722251,6.04338628,112150.0,112140.0,0.00631925]
[1756429722476,5.86493369,112150.0,112140.0,0.00631925]
[1756429723221,5.8174692,112150.0,112140.0,0.00631925]
[1756429723421,5.84119448,112150.0,112140.0,0.00631925]
[1756429723845,5.9294908,112150.0,112140.0,0.00631925]
[1756429724054,5.75440619,112150.0,112140.0,0.00631925]
[1756429724228,5.92080619,112150.0,112140.0,0.00631925]
[1756429724483,5.89708091,112150.0,112140.0,0.00631925]
[1756429724631,5.89704091,112150.0,112140.0,0.00631925]
[1756429724805,5.89604091,112150.0,112140.0,0.00631925]
[1756429725207,5.89592091,112150.0,112140.0,0.00631925]
[1756429726431,5.9433454,112150.0,112140.0,0.00631925]
[1756429726787,5.7771054,112150.0,112140.0,0.00631925]
[1756429726961,5.9433454,112150.0,112140.0,0.00631925]
[1756429727161,5.91171877,112150.0,112140.0,0.00631925]
[1756429727888,5.56888613,112150.0,112140.0,0.00631925]
[1756429728071,0.44844591,112150.0,112140.0,0.18466774]
[1756429728239,0.80803178,112150.0,112140.0,0.18466774]
[1756429728707,0.77637371,112150.0,112140.0,0.18466774]
[1756429728915,0.43230391,112150.0,112140.0,0.52873754]
[1756429729388,0.46396198,112150.0,112140.0,0.52873754]
[1756429730176,0.47221453,112150.0,112140.0,0.52873754]
[1756429730788,0.09230391,112150.0,112140.0,1.04839779]
[1756429730996,0.01908325,112150.0,112140.0,1.06933661]
[1756429731205,0.02527342,112150.0,112140.0,0.35030774]
[1756429731618,0.04178477,112150.0,112140.0,0.35030774]
[1756429731823,0.04178477,112150.0,112140.0,0.69437754]
[1756429732025,0.04178477,112150.0,112140.0,0.69637754]
[1756429732226,0.04178477,112150.0,112140.0,1.04044734]
[1756429732655,0.04178477,112150.0,112140.0,1.0697674]
[1756429733068,0.04178477,112150.0,112140.0,1.04044734]
[1756429733271,0.04178477,112150.0,112140.0,0.87480734]
[1756429733458,0.04178477,112150.0,112140.0,1.04040734]
[1756429734257,0.06553664,112150.0,112140.0,1.04040734]
[1756429734808,0.04178477,112150.0,112140.0,1.04040734]
[1756429735486,0.026812,112160.0,112150.0,0.17833259]
[1756429735716,0.03508059,112160.0,112150.0,0.52779239]
[1756429737860,0.0350781,112160.0,112150.0,0.52779239]
[1756429738330,0.0350781,112160.0,112150.0,0.52879239]
[1756429738683,0.0082661,112160.0,112150.0,0.69363239]
[1756429738891,0.0082661,112160.0,112150.0,0.78192871]
[1756429739126,0.05064802,112170.0,112160.0,0.17831669]
[1756429739344,0.00835001,112170.0,112160.0,0.52777649]
[1756429740370,0.00835001,112170.0,112160.0,0.98108143]
[1756429740580,8.515e-05,112170.0,112160.0,0.63701163]
[1756429740800,8.515e-05,112170.0,112160.0,0.69227618]
[1756429742611,8.515e-05,112170.0,112160.0,1.03634598]
[1756429742808,8.515e-05,112170.0,112160.0,1.03934598]
[1756429743518,8.515e-05,112170.0,112160.0,1.20442598]
[1756429743743,8.515e-05,112170.0,112160.0,1.03934598]
[1756429743952,8.515e-05,112170.0,112160.0,1.20442598]
[1756429744579,8.515e-05,112170.0,112160.0,1.03934598]
[1756429744796,8.515e-05,112170.0,112160.0,1.20434598]
[1756429745851,8.515e-05,112170.0,112160.0,1.20422598]
[1756429747701,8.515e-05,112170.0,112160.0,0.86015618]
[1756429747906,8.515e-05,112170.0,112160.0,0.69527618]
[1756429748111,8.515e-05,112170.0,112160.0,0.96197618]
[1756429748311,8.515e-05,112170.0,112160.0,1.05017281]
[1756429748553,8.515e-05,112170.0,112160.0,0.54170301]
[1756429748768,0.00222515,112170.0,112160.0,1.06784163]
[1756429749080,8.515e-05,112170.0,112160.0,1.07107163]
[1756429749627,8.515e-05,112170.0,112160.0,1.07111163]
[1756429749828,8.515e-05,112170.0,112160.0,1.15940795]
[1756429751211,8.515e-05,112170.0,112160.0,0.99500795]
[1756429751441,8.515e-05,112170.0,112160.0,1.15932795]
[1756429751687,8.515e-05,112170.0,112160.0,1.07075163]
[1756429752533,8.515e-05,112170.0,112160.0,1.07067163]
[1756429752734,8.515e-05,112170.0,112160.0,1.07063163]
[1756429753044,0.00222515,112170.0,112160.0,1.07059163]
[1756429753307,0.00222515,112170.0,112160.0,1.11936934]
[1756429754021,8.515e-05,112170.0,112160.0,1.11936934]
[1756429754271,8.515e-05,112170.0,112160.0,0.85266934]
[1756429754981,8.515e-05,112170.0,112160.0,0.80389163]
[1756429755223,8.515e-05,112170.0,112160.0,0.64001163]
[1756429755478,8.515e-05,112170.0,112160.0,0.80357163]
[1756429755903,8.515e-05,112170.0,112160.0,0.29594183]
[1756429756098,8.515e-05,112170.0,112160.0,0.80357163]
[1756429756455,8.515e-05,112170.0,112160.0,0.89186795]
[1756429757679,8.515e-05,112170.0,112160.0,0.87420395]
[1756429758241,8.515e-05,112170.0,112160.0,0.87416395]
[1756429760335,8.515e-05,112170.0,112160.0,0.52973415]
[1756429760535,8.515e-05,112170.0,112160.0,0.87380395]
[1756429760967,8.515e-05,112170.0,112160.0,0.71064395]
[1756429761353,8.515e-05,112170.0,112160.0,0.87360395]
[1756429762007,8.515e-05,112170.0,112160.0,0.78522763]
[1756429764087,0.01917782,112170.0,112160.0,0.78522763]
[1756429765133,0.01918321,112170.0,112160.0,0.78522763]
[1756429765938,8.515e-05,112170.0,112160.0,1.05192763]
[1756429766113,0.0191896,112170.0,112160.0,0.88904763]
[1756429766304,0.0191896,112170.0,112160.0,1.05140763]
[1756429766517,0.01919028,112170.0,112160.0,1.05140763]
[1756429766762,0.01919028,112170.0,112160.0,1.0885517]
[1756429767147,0.0274857,112170.0,112160.0,1.0885517]
[1756429768324,0.0274857,112170.0,112160.0,0.9261917]
[1756429768436,0.0274857,112170.0,112160.0,1.0883117]
[1756429769862,0.0274857,112170.0,112160.0,0.9261917]
[1756429770071,0.0274857,112170.0,112160.0,1.0882717]
[1756429771389,0.027495,112170.0,112160.0,1.0882717]
[1756429774221,0.027495,112170.0,112160.0,0.5821219]
[1756429774422,0.027495,112170.0,112160.0,1.05048763]
[1756429775042,0.027495,112170.0,112160.0,0.54497783]
[1756429775249,0.032685,112170.0,112160.0,0.70102783]
[1756429775459,0.029555,112170.0,112160.0,0.68223901]
[1756429775865,0.032685,112170.0,112160.0,0.51864901]
[1756429776016,0.032685,112170.0,112160.0,0.43035269]
[1756429776223,0.032685,112170.0,112160.0,0.59171269]
[1756429776611,0.032685,112170.0,112160.0,0.59271269]
[1756429776815,0.029555,112170.0,112160.0,0.59486269]
[1756429777035,0.029555,112170.0,112160.0,0.43350269]
[1756429777243,0.029555,112170.0,112160.0,0.59486269]
[1756429777450,0.032685,112170.0,112160.0,0.59271269]
[1756429777872,0.029555,112170.0,112160.0,0.32816269]
[1756429780724,0.02955775,112170.0,112160.0,0.32816269]
[1756429781674,0.02125028,112170.0,112160.0,0.32816269]
[1756429781912,0.0295575,112170.0,112160.0,0.32816269]
[1756429782115,0.00214515,112170.0,112160.0,0.33130269]
[1756429782320,8.515e-05,112170.0,112160.0,0.71908495]
[1756429783997,8.515e-05,112170.0,112160.0,0.82832009]
[1756429787344,8.515e-05,112170.0,112160.0,0.62324763]
[1756429787576,8.515e-05,112170.0,112160.0,0.78352763]
[1756429789633,8.515e-05,112170.0,112160.0,1.05022763]
[1756429791131,8.515e-05,112170.0,112160.0,0.54587783]
[1756429791269,8.515e-05,112170.0,112160.0,1.04998763]
[1756429791469,8.515e-05,112170.0,112160.0,1.13828395]
[1756429793456,8.515e-05,112170.0,112160.0,0.79421415]
[1756429793677,8.515e-05,112170.0,112160.0,1.13828395]
[1756429798799,0.3858013,112200.0,112190.0,0.178269]
[1756429798999,0.4070515,112200.0,112190.0,0.337509]
[1756429799206,0.42158212,112200.0,112190.0,0.337509]
[1756429799685,0.42158212,112200.0,112190.0,0.178269]
[1756429799878,1.09802874,112200.0,112170.0,0.45388546]
[1756429800207,0.07063082,112190.0,112180.0,0.33740489]
[1756429800333,0.10429164,112190.0,112180.0,0.33740489]
[1756429800532,0.13321964,112190.0,112180.0,0.33740489]
[1756429800735,0.13570964,112190.0,112180.0,0.33740489]
[1756429800949,0.13570964,112190.0,112180.0,0.33732489]
[1756429801403,0.47147623,112190.0,112180.0,0.33732489]
[1756429801699,0.48077754,112190.0,112180.0,0.33732489]
[1756429802109,0.48077751,112190.0,112180.0,0.33732489]
[1756429802308,0.56907383,112190.0,112180.0,0.15904]
[1756429802513,0.56907366,112190.0,112180.0,0.15904]
[1756429802723,0.56907366,112190.0,112180.0,0.15896]
[1756429802928,0.41014652,112190.0,112180.0,0.15896]
[1756429803355,0.41014652,112190.0,112180.0,0.33724489]
[1756429803566,0.4267496,112190.0,112180.0,0.33724489]
[1756429804525,0.7667496,112190.0,112180.0,0.33724489]
[1756429805380,0.4226798,112190.0,112180.0,0.33724489]
[1756429805782,0.4201898,112190.0,112180.0,0.35569883]
[1756429805983,0.4201898,112190.0,112180.0,0.35875883]
[1756429806347,0.0801898,112190.0,112180.0,0.35875883]
[1756429806542,0.0780698,112190.0,112180.0,0.35875883]
[1756429806790,0.07184321,112190.0,112180.0,0.35875883]
[1756429806961,0.07184321,112190.0,112180.0,0.34244489]
[1756429807420,0.03808993,112190.0,112180.0,0.17828489]
[1756429807608,0.38479973,112190.0,112180.0,0.33704489]
[1756429807956,0.38215973,112190.0,112180.0,0.32704489]
[1756429808733,0.40391767,112190.0,112180.0,0.32704489]
[1756429808890,0.05984787,112190.0,112180.0,0.32704489]
[1756429809096,0.40127767,112190.0,112180.0,0.32704489]
[1756429810186,0.05720787,112190.0,112180.0,0.32704489]
[1756429810399,0.40127767,112190.0,112180.0,0.32704489]
[1756429810718,0.40127767,112190.0,112180.0,0.32680489]
[1756429810994,0.40127767,112190.0,112180.0,0.2259566]
[1756429811212,0.40127767,112190.0,112180.0,0.32676489]
[1756429811846,0.40127519,112190.0,112180.0,0.32676489]
[1756429812053,0.40127519,112190.0,112180.0,0.16828489]
[1756429812262,0.40391519,112190.0,112170.0,0.24685225]
[1756429812469,0.1709649,112190.0,112180.0,0.1584]
[1756429812670,0.1441569,112190.0,112180.0,0.1584]
[1756429812972,0.1709649,112190.0,112180.0,0.1584]
[1756429813379,0.1699649,112190.0,112180.0,0.1584]
[1756429813585,0.1709649,112190.0,112180.0,0.1584]
[1756429813783,0.5150347,112190.0,112180.0,0.1584]
[1756429813911,0.5140347,112190.0,112180.0,0.33668489]
[1756429814394,0.5140347,112190.0,112160.0,0.17262852]
[1756429814395,0.17828613,112180.0,112150.0,0.2667]
[1756429814609,0.3460598,112160.0,112150.0,0.3389966]
[1756429814790,0.3460598,112160.0,112150.0,0.1836166]
[1756429815035,0.3460598,112160.0,112150.0,0.3432166]
[1756429815246,0.3728728,112160.0,112150.0,8.515e-05]
[1756429815445,0.3728728,112160.0,112150.0,0.33801774]
[1756429815621,0.028803,112160.0,112150.0,0.33801774]
[1756429815826,0.3728728,112160.0,112150.0,0.33801774]
[1756429816792,0.3728728,112160.0,112150.0,0.34101774]
[1756429816992,0.3728728,112160.0,112150.0,0.34315774]
[1756429817206,0.46379912,112160.0,112150.0,0.34085774]
[1756429817412,0.3728728,112160.0,112150.0,0.34185774]
[1756429818388,0.028803,112160.0,112150.0,0.34185774]
[1756429818629,0.3728728,112160.0,112150.0,0.34185774]
[1756429819449,0.3728728,112160.0,112150.0,0.34394774]
[1756429819875,0.3728728,112160.0,112150.0,0.34709774]
[1756429820086,0.3728728,112160.0,112150.0,0.34185774]
[1756429821427,0.3728728,112160.0,112150.0,0.34709774]
[1756429821628,0.3728728,112160.0,112150.0,0.34185774]
[1756429821828,0.3728728,112160.0,112150.0,0.34709774]
[1756429822032,0.3728728,112160.0,112150.0,0.34185774]
[1756429823291,0.3728728,112160.0,112150.0,0.34129774]
[1756429824030,0.55381949,112160.0,112150.0,0.00408515]
[1756429824251,0.3755028,112160.0,112150.0,0.16296515]
[1756429824439,0.46379912,112160.0,112150.0,0.00408515]
[1756429824996,0.46379912,112160.0,112150.0,0.18241774]
[1756429825261,0.028803,112160.0,112150.0,0.18241774]
[1756429825448,0.3755028,112160.0,112150.0,0.18241774]
[1756429825814,0.3728728,112160.0,112150.0,0.34117774]
[1756429826039,0.3755028,112160.0,112150.0,0.00408515]
[1756429826408,0.3755028,112160.0,112150.0,0.16280515]
[1756429826788,0.11709932,112160.0,112150.0,0.00408515]
[1756429826941,0.46379912,112160.0,112150.0,0.00408515]
[1756429827508,6.1977264,112160.0,112150.0,0.00408515]
[1756429827714,6.35481073,112160.0,112150.0,0.00408515]
[1756429827926,6.40223522,112160.0,112150.0,0.00408515]
[1756429828350,6.34399397,112160.0,112150.0,0.00408515]
[1756429828553,6.53577082,112160.0,112150.0,0.00408515]
[1756429828756,6.43229029,112160.0,112150.0,0.00408515]
[1756429828960,6.59233029,112160.0,112150.0,0.00408515]
[1756429829164,6.56449568,112160.0,112150.0,0.00308515]
[1756429829373,6.56449568,112160.0,112150.0,8.515e-05]
[1756429829580,6.40445568,112160.0,112150.0,8.515e-05]
[1756429829846,6.49382486,112160.0,112150.0,0.00208515]
[1756429830047,5.98975506,112160.0,112150.0,0.00208515]
[1756429830258,6.14967506,112160.0,112150.0,0.00208515]
[1756429830916,6.06137874,112160.0,112150.0,0.00208515]
[1756429832604,6.40538267,112160.0,112150.0,0.00208515]
[1756429832795,6.40514267,112160.0,112150.0,0.00208515]
[1756429833427,6.3886368,112160.0,112150.0,0.00208515]
[1756429833606,6.40513946,112160.0,112150.0,0.00208515]
[1756429834021,6.49343578,112160.0,112150.0,0.00208515]
[1756429836156,6.50200039,112160.0,112150.0,0.00208515]
[1756429837222,6.34232039,112160.0,112150.0,0.00208515]
[1756429837357,6.4541759,112160.0,112150.0,0.00208515]
[1756429837602,6.44561129,112160.0,112150.0,0.00208515]
[1756429838979,6.26754077,112160.0,112150.0,0.00208515]
[1756429839183,6.27111677,112160.0,112150.0,0.00208515]
[1756429839391,6.49695222,112160.0,112150.0,0.00208515]
[1756429840426,6.46527305,112160.0,112150.0,0.00208515]
[1756429842917,6.47383766,112160.0,112150.0,0.00208515]
[1756429843118,6.47385799,112160.0,112150.0,0.00208515]
[1756429843434,6.42633923,112160.0,112150.0,0.00208515]
[1756429843640,6.42634217,112160.0,112150.0,0.00208515]
[1756429844073,6.47392002,112160.0,112150.0,0.00208515]
[1756429844299,6.42634217,112160.0,112150.0,0.00208515]
[1756429844826,6.26706217,112160.0,112150.0,0.00208515]
[1756429845082,6.42586217,112160.0,112150.0,0.00208515]
[1756429845289,6.42566217,112160.0,112150.0,0.00732515]
[1756429845488,5.79404054,112160.0,112150.0,0.00732515]
[1756429845941,6.04090278,112160.0,112150.0,0.00732515]
[1756429846154,6.38497258,112160.0,112150.0,0.00208515]
[1756429846364,6.33736585,112160.0,112150.0,0.00208515]
[1756429846584,6.42566217,112160.0,112150.0,0.00208515]
[1756429847004,6.26706217,112160.0,112150.0,0.00208515]
[1756429847184,5.81505936,112160.0,112150.0,0.00732515]
[1756429847395,5.99337605,112160.0,112150.0,0.00732515]
[1756429847819,5.35992581,112160.0,112150.0,0.00732515]
[1756429848030,5.86255561,112160.0,112150.0,0.00732515]
[1756429848462,6.0408723,112160.0,112150.0,0.00732515]
[1756429848648,6.12916862,112160.0,112150.0,0.00732515]
[1756429848851,6.12916862,112160.0,112150.0,0.00523515]
[1756429849149,5.96870158,112160.0,112150.0,0.00205]
[1756429849326,5.96870158,112160.0,112140.0,0.00115925]
[1756429849537,5.35153012,112150.0,112140.0,0.00115925]
[1756429849748,5.40155396,112150.0,112140.0,0.00115925]
[1756429849949,5.40158692,112150.0,112140.0,0.00115925]
[1756429850306,5.42840792,112150.0,112140.0,0.00320925]
[1756429851036,5.42840792,112150.0,112140.0,0.00625925]
[1756429851453,5.42840792,112150.0,112140.0,0.00925925]
[1756429852531,5.42840792,112150.0,112140.0,0.01025925]
[1756429852714,5.46143969,112150.0,112140.0,0.01025925]
[1756429853438,5.43869861,112150.0,112140.0,0.01025925]
[1756429853644,5.46148106,112150.0,112140.0,0.01025925]
[1756429854040,5.45320296,112150.0,112140.0,0.01025925]
[1756429854244,5.98575387,112150.0,112140.0,0.00820925]
[1756429854447,5.52695475,112150.0,112140.0,0.00820925]
[1756429854623,5.52695475,112150.0,112140.0,0.01025925]
[1756429854986,5.52508475,112150.0,112140.0,0.01025925]
[1756429855188,5.54789357,112150.0,112140.0,0.00820925]
[1756429855386,5.89196337,112150.0,112140.0,0.00820925]
[1756429855914,5.89196337,112150.0,112140.0,0.01025925]
[1756429856521,5.54789357,112150.0,112140.0,0.01025925]
[1756429857173,5.89196337,112150.0,112140.0,0.01025925]
[1756429857340,5.89202872,112150.0,112140.0,0.01025925]
[1756429858700,6.07036131,112150.0,112140.0,0.00515925]
[1756429858947,5.82843282,112150.0,112140.0,0.00515925]
[1756429859154,0.6840698,112140.0,112130.0,0.00305]
[1756429859270,5.74086143,112140.0,112130.0,0.00305]
[1756429859473,5.78866384,112140.0,112130.0,0.0051]
[1756429859717,5.83102775,112140.0,112120.0,0.029953]
[1756429859900,0.47846763,112140.0,112130.0,0.0051]
[1756429860173,6.08712123,112140.0,112130.0,0.0051]
[1756429860385,6.08712123,112140.0,112130.0,0.0071]
[1756429860591,6.08712123,112140.0,112130.0,0.0101]
[1756429860806,6.08712123,112140.0,112120.0,0.029953]
[1756429861037,5.34238386,112130.0,112120.0,0.029953]
[1756429861239,0.63195117,112130.0,112120.0,0.029953]
[1756429861443,0.63195117,112130.0,112120.0,0.032003]
[1756429862290,0.58414913,112130.0,112120.0,0.032003]
[1756429862509,0.32837565,112130.0,112120.0,0.2103833]
[1756429862727,0.64139477,112130.0,112120.0,0.2103833]
[1756429862947,0.67251547,112130.0,112120.0,0.2103833]
[1756429863526,0.67351525,112130.0,112120.0,0.2103833]
[1756429864364,0.67351525,112130.0,112120.0,0.2113833]
[1756429865810,0.32944545,112130.0,112120.0,0.2113833]
[1756429865979,0.67351525,112130.0,112120.0,0.1845603]
[1756429866506,0.69743227,112130.0,112120.0,0.1845603]
[1756429867037,0.69707227,112130.0,112120.0,0.1845603]
[1756429870316,0.50752425,112130.0,112120.0,0.1845603]
[1756429870532,0.57662793,112130.0,112120.0,0.1845603]
[1756429870918,0.57662793,112130.0,112120.0,0.2113833]
[1756429871751,0.56002457,112130.0,112120.0,0.2113833]
[1756429873193,0.52781779,112130.0,112120.0,0.2113833]
[1756429873420,0.53612094,112130.0,112120.0,0.2113833]
[1756429873639,0.03465127,112130.0,112120.0,0.2113833]
[1756429874654,0.37872107,112130.0,112120.0,0.2113833]
[1756429875295,0.37872263,112130.0,112120.0,0.2113833]
[1756429875863,0.53580263,112130.0,112120.0,0.2113833]
[1756429876320,0.53580704,112130.0,112120.0,0.2113833]
[1756429876531,0.37872704,112130.0,112120.0,0.2113833]
[1756429876788,0.53572704,112130.0,112120.0,0.2113833]
[1756429876999,0.17153661,112130.0,112120.0,0.2113833]
[1756429877242,0.51560641,112130.0,112120.0,0.2113833]
[1756429877455,0.35860641,112130.0,112120.0,0.26695721]
[1756429877901,0.01453635,112130.0,112120.0,0.26695721]
[1756429878583,0.01453635,112130.0,112120.0,0.2113833]
[1756429880863,0.01453635,112130.0,112120.0,0.3681033]
[1756429881485,0.8407898,112140.0,112130.0,0.17836439]
[1756429881690,0.94362139,112140.0,112130.0,0.18050439]
[1756429881896,0.94362139,112140.0,112130.0,0.18344439]
[1756429882314,0.94362139,112140.0,112130.0,0.00508]
[1756429882515,0.94549139,112140.0,112130.0,0.18344439]
[1756429883540,0.94549073,112140.0,112130.0,0.18344439]
[1756429883732,0.94549072,112140.0,112130.0,0.18344439]
[1756429883908,0.94549072,112140.0,112130.0,0.17836439]
[1756429884315,0.94549072,112140.0,112130.0,0.18130439]
[1756429884539,0.94549072,112140.0,112130.0,0.18344439]
[1756429884749,0.94362072,112140.0,112130.0,0.18344439]
[1756429886767,0.8549244,112140.0,112130.0,0.18344439]
[1756429887161,0.5108546,112140.0,112130.0,0.18344439]
[1756429887361,0.8549244,112140.0,112130.0,0.18344439]
[1756429888121,0.8548844,112140.0,112130.0,0.18344439]
[1756429888689,0.0145346,112140.0,112130.0,0.52751419]
[1756429888905,0.5145346,112140.0,112130.0,0.61581051]
[1756429889113,4.79427284,112140.0,112130.0,0.55433319]
[1756429889313,0.03366884,112140.0,112130.0,0.55433319]
[1756429889970,0.03366884,112140.0,112130.0,0.36650339]
[1756429890201,0.03366884,112140.0,112130.0,0.21026339]
[1756429890473,0.02743973,112140.0,112130.0,0.71053319]
[1756429890685,0.1562,112150.0,112140.0,0.17834849]
[1756429890896,0.18985241,112150.0,112140.0,0.17834849]
[1756429891101,0.18985241,112150.0,112140.0,0.18048849]
[1756429891483,0.18981241,112150.0,112140.0,0.21024649]
[1756429891655,0.03365241,112150.0,112140.0,0.21024649]
[1756429891863,0.18977241,112150.0,112140.0,0.21024649]
[1756429892068,0.18977241,112150.0,112140.0,0.18342849]
[1756429892272,0.19077241,112150.0,112140.0,0.18342849]
[1756429892644,0.1845468,112150.0,112140.0,0.18342849]
[1756429892837,0.0284268,112150.0,112140.0,0.18342849]
[1756429893041,0.0284268,112150.0,112140.0,0.52749829]
[1756429893352,0.003,112150.0,112140.0,0.61579461]
[1756429893554,0.003,112150.0,112140.0,0.21024449]
[1756429893753,0.003,112150.0,112140.0,0.55431429]
[1756429897173,0.003,112150.0,112140.0,0.21024449]
[1756429897372,0.003,112150.0,112140.0,0.55431429]
[1756429898218,0.003,112150.0,112140.0,0.21024449]
[1756429898619,0.003,112150.0,112140.0,0.36612449]
[1756429899212,0.16075,112150.0,112140.0,0.20810449]
[1756429899474,0.16075,112150.0,112140.0,0.20516449]
[1756429900032,0.16075,112150.0,112140.0,0.20810449]
[1756429900738,0.16075,112150.0,112140.0,0.21024449]
[1756429901382,0.00487,112150.0,112140.0,0.21024449]
[1756429902284,0.00487,112150.0,112140.0,0.17834849]
[1756429902709,0.3489398,112150.0,112140.0,0.17834849]
[1756429902933,0.003,112150.0,112140.0,0.5826212]
[1756429903580,0.003,112150.0,112140.0,0.2385514]
[1756429904018,0.003,112150.0,112140.0,0.18342849]
[1756429910680,0.003,112150.0,112140.0,0.33930849]
[1756429916076,0.003,112150.0,112140.0,0.36612249]
[1756429916293,0.003,112150.0,112140.0,0.71019229]
[1756429920450,0.003,112150.0,112140.0,1.21115841]
[1756429920654,0.003,112150.0,112140.0,0.61127513]
[1756429920855,0.003,112150.0,112140.0,0.95534493]
[1756429921175,0.003,112150.0,112140.0,0.86704861]
[1756429925153,0.6840698,112180.0,112160.0,0.1783021]
[1756429925154,0.6852398,112180.0,112160.0,0.1783021]
[1756429925376,0.6852398,112180.0,112170.0,0.17830079]
[1756429925377,0.82386122,112180.0,112170.0,0.17830079]
[1756429925559,5.58633522,112180.0,112170.0,0.17830079]
[1756429926634,5.59133522,112180.0,112170.0,0.17830079]
[1756429927040,5.59133522,112180.0,112160.0,0.3341421]
[1756429927248,0.83073122,112180.0,112170.0,0.17830079]
[1756429927445,5.59533522,112180.0,112160.0,0.3341421]
[1756429927646,4.760604,112170.0,112160.0,0.3341421]
[1756429927895,4.7854999,112170.0,112160.0,0.17831669]
[1756429928104,0.8297104,112170.0,112150.0,0.21406021]
[1756429928287,0.3440698,112160.0,112150.0,0.18724921]
[1756429928533,0.35236843,112160.0,112150.0,0.18724921]
[1756429928733,0.35423843,112160.0,112150.0,0.18724921]
[1756429929601,0.35523843,112160.0,112150.0,0.18724921]
[1756429930017,0.37183329,112160.0,112150.0,0.17833259]
[1756429930843,0.37300329,112160.0,112150.0,0.17833259]
[1756429931311,0.37500329,112160.0,112150.0,0.17833259]
[1756429931869,0.38122794,112160.0,112150.0,0.17833259]
[1756429932262,0.38005794,112160.0,112150.0,0.17833259]
[1756429932460,0.53205669,112160.0,112140.0,0.17834849]
[1756429932686,0.3440698,112150.0,112140.0,0.33414849]
[1756429933033,0.37083747,112150.0,112140.0,0.17834849]
[1756429933174,0.37083747,112150.0,112140.0,0.33414849]
[1756429933708,0.37083747,112150.0,112140.0,0.17834849]
[1756429933860,0.42963313,112150.0,112140.0,0.17834849]
[1756429934287,0.40473546,112150.0,112140.0,0.17834849]
[1756429934486,0.43063179,112150.0,112140.0,0.17834849]
[1756429934896,0.08756199,112150.0,112140.0,0.17834849]
[1756429935458,0.11290325,112150.0,112140.0,0.17834849]
[1756429935661,0.05410759,112150.0,112140.0,0.17834849]
[1756429936586,0.39934739,112150.0,112140.0,0.17834849]
[1756429937253,0.39817739,112150.0,112140.0,0.17834849]
[1756429937911,0.55514163,112150.0,112140.0,0.17834849]
[1756429938309,0.55397163,112150.0,112140.0,0.17834849]
[1756429939366,0.55397163,112150.0,112140.0,0.18132849]
[1756429940551,0.55397163,112150.0,112140.0,0.17834849]
[1756429942337,0.20986183,112150.0,112140.0,0.17834849]
[1756429942543,0.55393163,112150.0,112140.0,0.17834849]
[1756429943276,0.20986183,112150.0,112140.0,0.17834849]
[1756429943473,0.55393163,112150.0,112140.0,0.17834849]
[1756429944575,0.73052427,112150.0,112130.0,0.18134439]
[1756429944799,0.73052427,112150.0,112120.0,0.54611931]
[1756429944800,0.43236612,112140.0,112120.0,0.54611931]
[1756429944998,0.48405197,112140.0,112130.0,0.17836439]
[1756429945152,0.48592197,112140.0,112120.0,0.54611931]